bitfinex-derivatives/quotes_SOLF0:USTF0_20250227
["timestamp","ask_amount","ask_price","bid_price","bid_amount"]
[1740637707241,7.13,140.39,140.32,13.57840903]
[1740637707442,7.13,140.39,140.37,0.05288265]
[1740637707642,7.13,140.39,140.34,7.1322]
[1740637707843,7.17741028,140.39,140.37,0.04891153]
[1740637708245,0.04741028,140.39,140.37,0.04891153]
[1740637708747,0.04741028,140.39,140.38,8.57250693]
[1740637709047,1.9828,140.48,140.38,8.57250693]
[1740637709249,11.26,140.45,140.39,8.56945746]
[1740637709547,7.1277,140.44,140.4,8.56558139]
[1740637709744,11.26,140.45,140.32,1.8754]
[1740637709945,11.26,140.45,140.33,8.56603814]
[1740637710144,7.1279,140.43,140.38,7.1302]
[1740637710344,0.04927423,140.4,140.39,8.56603814]
[1740637710548,11.26,140.45,140.39,8.56603814]
[1740637710744,7.1277,140.44,140.4,8.56603814]
[1740637710945,11.26,140.45,140.32,1.8754]
[1740637711145,11.26,140.45,140.33,8.55926053]
[1740637711345,11.26,140.45,140.38,7.1304]
[1740637711544,11.26,140.45,140.39,8.55926053]
[1740637711744,11.26,140.45,140.4,0.0469941]
[1740637711945,11.26,140.45,140.36,7.1313]
[1740637712140,11.26,140.45,140.41,0.04624266]
[1740637712347,7.1284,140.42,140.41,0.04624266]
[1740637713450,11.26,140.45,140.41,0.04624266]
[1740637713639,7.128,140.43,140.41,0.04624266]
[1740637713844,11.26,140.45,140.41,0.04624266]
[1740637714047,7.1284,140.42,140.41,0.04624266]
[1740637715951,7.1284,140.42,140.41,4.266e-05]
[1740637717750,28.4884,140.42,140.41,4.266e-05]
[1740637717951,10.982,140.42,140.41,4.266e-05]
[1740637719642,20.3257,140.42,140.41,4.266e-05]
[1740637720045,11.26,140.42,140.41,4.266e-05]
[1740637720250,0.05451908,140.43,140.41,4.266e-05]
[1740637720654,7.18251908,140.43,140.41,4.266e-05]
[1740637721755,7.1284,140.42,140.41,4.266e-05]
[1740637723452,0.05451908,140.43,140.41,4.266e-05]
[1740637723760,0.05451908,140.43,140.41,7.12864266]
[1740637723957,0.05451908,140.43,140.41,4.266e-05]
[1740637724462,192.0,140.54,140.42,8.53956698]
[1740637724759,1.27919782,140.53,140.34,196.3301408]
[1740637724958,1.27935327,140.52,140.35,10.54365408]
[1740637725152,3.7043,140.54,140.36,8.54625408]
[1740637725153,1.27935327,140.53,140.36,8.54625408]
[1740637725462,1.27935327,140.52,140.43,0.0471264]
[1740637725664,7.1262,140.47,140.43,7.1749264]
[1740637725855,7.1262,140.47,140.35,1.9974]
[1740637726055,3.7043,140.54,140.44,0.0488149]
[1740637726258,3.7043,140.54,140.36,8.54602002]
[1740637726259,1.27927183,140.53,140.43,0.04730614]
[1740637726453,1.27927183,140.53,140.35,1.9974]
[1740637726658,1.27927183,140.53,140.47,0.04903555]
[1740637726659,1.38078766,140.52,140.47,0.04903555]
[1740637726858,1.38078766,140.52,140.35,1.9974]
[1740637726859,1.27928766,140.51,140.39,7.1296]
[1740637727058,1.27928766,140.51,140.48,0.05430786]
[1740637727259,1.27928766,140.51,140.44,0.05314484]
[1740637727458,1.27928766,140.51,140.36,8.55880321]
[1740637727660,1.27928766,140.51,140.46,0.05356378]
[1740637727958,7.1257,140.48,140.42,7.1281]
[1740637728160,192.0,140.53,140.35,1.9974]
[1740637728366,11.26,140.52,140.44,7.1720211]
[1740637728659,3.7043,140.54,140.35,196.3547408]
[1740637728863,11.26,140.51,140.47,0.05256606]
[1740637729063,7.1254,140.48,140.43,7.1276]
[1740637729265,7.1254,140.48,140.44,8.55524196]
[1740637729463,11.26,140.51,140.45,8.55524196]
[1740637729662,11.26,140.51,140.45,1.9439]
[1740637730065,7.1257,140.48,140.45,1.9439]
[1740637731058,11.26,140.51,140.45,1.9439]
[1740637731259,11.26,140.51,140.45,9.0705]
[1740637731558,11.26,140.51,140.45,1.9439]
[1740637732158,1.8645,140.54,140.46,8.5555699]
[1740637732358,13.1245,140.54,140.45,3.8057]
[1740637732559,13.1245,140.54,140.49,0.04582623]
[1740637733667,7.1244,140.5,140.49,0.04582623]
[1740637738170,0.74482258,140.57,140.49,7.17032623]
[1740637738369,1.27886902,140.56,140.49,0.04582623]
[1740637738869,7.1227,140.54,140.5,7.1243]
[1740637739070,0.74482258,140.57,140.5,1.9737]
[1740637739371,7.1219,140.55,140.52,7.17560047]
[1740637739870,7.1219,140.55,140.52,0.05230047]
[1740637740272,7.1215,140.56,140.52,7.17560047]
[1740637740474,119.00230397,140.61,140.53,8.53313993]
[1740637740667,65.64275382,140.61,140.51,3.8795]
[1740637740864,7.1207,140.58,140.56,0.04939227]
[1740637741174,65.64275382,140.61,140.56,0.04939227]
[1740637741366,54.40275382,140.61,140.56,0.04939227]
[1740637741563,7.1199,140.59,140.56,0.04939227]
[1740637743069,7.1194,140.6,140.56,0.04939227]
[1740637743270,7.1194,140.6,140.51,3.8795]
[1740637743567,11.24,140.64,140.52,8.51269542]
[1740637743767,7.1187,140.62,140.54,0.05190173]
[1740637743963,7.1187,140.62,140.55,8.51269542]
[1740637744162,7.1187,140.62,140.57,0.04920068]
[1740637744369,7.1187,140.62,140.57,3.89480068]
[1740637744570,195.6205,140.66,140.59,7.1197]
[1740637744770,193.72,140.66,140.59,7.1197]
[1740637745075,89.96152081,140.67,140.61,0.04966208]
[1740637745271,7.1168,140.65,140.61,0.04966208]
[1740637746375,7.1177,140.64,140.61,0.04966208]
[1740637746778,1.9005,140.69,140.61,0.04966208]
[1740637746972,1.27781439,140.68,140.61,0.04966208]
[1740637747173,7.1183,140.62,140.61,0.04966208]
[1740637753972,7.118,140.63,140.61,0.04966208]
[1740637754178,11.24,140.67,140.61,0.04966208]
[1740637754482,1.9005,140.69,140.61,0.04966208]
[1740637755074,7.1176,140.64,140.61,0.04966208]
[1740637755881,7.1179,140.63,140.61,0.04966208]
[1740637756084,1.9005,140.69,140.61,0.04966208]
[1740637756280,1.9005,140.69,140.61,7.16826208]
[1740637756482,1.9005,140.69,140.61,0.04966208]
[1740637756783,1.27775047,140.68,140.61,0.04966208]
[1740637756983,7.1183,140.62,140.61,0.04966208]
[1740637761586,1.9005,140.69,140.61,0.04966208]
[1740637761587,7.118,140.63,140.61,0.04966208]
[1740637761879,11.24,140.67,140.61,0.04966208]
[1740637762181,7.1174,140.64,140.61,0.04966208]
[1740637762483,11.24,140.67,140.61,0.04966208]
[1740637762686,14.2238,140.75,140.61,0.04966208]
[1740637762885,11.24,140.7,140.56,1.9913]
[1740637763191,11.24,140.7,140.65,0.05080453]
[1740637763480,11.24,140.7,140.66,0.04626273]
[1740637763481,7.1153,140.68,140.66,0.04626273]
[1740637763688,11.24,140.7,140.57,8.47271056]
[1740637763883,7.1162,140.67,140.66,0.05331247]
[1740637764079,7.1162,140.67,140.59,3.8731]
[1740637764278,7.1162,140.67,140.63,7.16996479]
[1740637765083,7.1157,140.68,140.64,7.1171]
[1740637765481,13.2031,140.71,140.65,0.04805347]
[1740637765680,1.9631,140.71,140.6,8.43519074]
[1740637765886,385.68,140.74,140.67,0.04541787]
[1740637766086,13.1566,140.73,140.61,8.43519074]
[1740637766386,13.1566,140.73,140.69,0.05264858]
[1740637766681,1.27750108,140.72,140.59,3.8731]
[1740637766887,2.1736,140.71,140.59,3.8731]
[1740637767088,7.1171,140.65,140.6,7.1189]
[1740637767285,2.1736,140.71,140.59,3.8731]
[1740637767487,7.1181,140.63,140.59,3.8731]
[1740637767686,11.28871819,140.66,140.64,0.04557069]
[1740637767886,11.24,140.66,140.59,3.8731]
[1740637768087,7.1168,140.65,140.64,0.04557755]
[1740637768389,11.2947205,140.66,140.63,0.04673572]
[1740637768790,7.1173,140.64,140.63,0.04673572]
[1740637770592,11.2947205,140.66,140.56,1.9913]
[1740637770889,3.29564674,140.65,140.56,1.9913]
[1740637771084,7.1201,140.59,140.56,1.9913]
[1740637771292,194.1674,140.65,140.56,1.9913]
[1740637771892,7.1207,140.58,140.56,1.9913]
[1740637772290,0.05336974,140.58,140.56,0.04761536]
[1740637772485,7.1208,140.57,140.56,0.04761536]
[1740637772681,0.05336974,140.58,140.56,0.04761536]
[1740637773989,0.05336974,140.58,140.56,7.16881536]
[1740637774290,7.1193,140.61,140.57,8.46195083]
[1740637774490,7.1193,140.61,140.56,0.04761536]
[1740637774688,7.1193,140.61,140.57,8.46395325]
[1740637774883,7.1193,140.61,140.56,0.04761536]
[1740637775086,7.1193,140.61,140.57,8.46440769]
[1740637775290,0.05202703,140.6,140.57,7.1208]
[1740637775793,7.17142703,140.6,140.56,7.16881536]
[1740637775989,7.17142703,140.6,140.57,8.46905707]
[1740637776189,7.17142703,140.6,140.56,7.16881536]
[1740637776389,7.17142703,140.6,140.57,8.47402546]
[1740637776590,7.17142703,140.6,140.56,7.16881536]
[1740637776790,7.17142703,140.6,140.57,8.47393762]
[1740637776993,7.17142703,140.6,140.56,7.16881536]
[1740637777188,7.17142703,140.6,140.57,8.47394103]
[1740637777389,0.05202703,140.6,140.58,8.47351175]
[1740637777592,0.05202703,140.6,140.59,8.47506439]
[1740637778094,0.05202703,140.6,140.59,15.59486439]
[1740637778491,11.24,140.66,140.59,15.59486439]
[1740637778696,7.1177,140.64,140.6,8.47506439]
[1740637778889,7.1177,140.64,140.59,7.1198]
[1740637779092,7.1177,140.64,140.6,15.59762718]
[1740637779394,11.24,140.66,140.49,179.17872747]
[1740637779592,11.24,140.66,140.61,1.808e-05]
[1740637779593,1.27802369,140.65,140.61,1.808e-05]
[1740637779789,7.1212,140.57,140.52,8.4861902]
[1740637779990,7.1212,140.57,140.53,8.4861902]
[1740637780190,7.1212,140.57,140.54,8.4861902]
[1740637780493,7.1212,140.57,140.55,8.4861902]
[1740637780693,3.7859,140.63,140.51,10.9701]
[1740637780892,7.1216,140.56,140.55,0.04996385]
[1740637781394,7.1216,140.56,140.55,8.55674499]
[1740637781783,7.1216,140.56,140.55,8.55715866]
[1740637781986,7.1216,140.56,140.55,0.04996385]
[1740637782390,0.04869991,140.57,140.48,38.59940664]
[1740637782391,7.1234,140.52,140.48,38.59940664]
[1740637782590,7.1234,140.52,140.49,8.51999947]
[1740637782791,7.1234,140.52,140.5,8.51999947]
[1740637782989,7.1234,140.52,140.51,8.51999947]
[1740637784801,7.17289202,140.53,140.51,8.51999947]
[1740637784999,7.17289202,140.53,140.5,0.05420588]
[1740637785198,7.17289202,140.53,140.51,8.52630681]
[1740637785399,7.17289202,140.53,140.5,0.05420588]
[1740637785601,0.04999202,140.53,140.5,0.05420588]
[1740637786201,0.04999202,140.53,140.44,8.52288406]
[1740637786501,1.27887452,140.55,140.45,8.52288406]
[1740637786697,7.1259,140.47,140.46,8.52288406]
[1740637787098,7.1259,140.47,140.43,2.0019]
[1740637787404,7.17344588,140.48,140.45,0.05044134]
[1740637788402,7.1261,140.47,140.45,0.05044134]
[1740637792000,0.04794588,140.48,140.45,0.05044134]
[1740637792597,7.126,140.47,140.45,0.05044134]
[1740637792798,0.04794588,140.48,140.45,0.05044134]
[1740637793107,7.17364588,140.48,140.45,0.05044134]
[1740637793403,0.04794588,140.48,140.45,0.05044134]
[1740637793596,7.17364588,140.48,140.45,0.05044134]
[1740637794800,0.04794588,140.48,140.45,0.05044134]
[1740637794997,7.126,140.47,140.45,0.05044134]
[1740637795597,0.04794588,140.48,140.45,0.05044134]
[1740637795598,7.1264,140.46,140.45,0.05044134]
[1740637802407,7.1282,140.43,140.36,8.48179391]
[1740637802600,7.1282,140.43,140.36,10.51539391]
[1740637802804,2.1596,140.48,140.36,10.51539391]
[1740637803108,2.1596,140.48,140.36,2.0336]
[1740637803305,1.2797688,140.47,140.36,2.0336]
[1740637803612,0.05000012,140.43,140.41,0.04666305]
[1740637803909,7.1288,140.42,140.41,0.04666305]
[1740637805208,0.05000012,140.43,140.41,0.04666305]
[1740637805610,385.72,140.49,140.41,0.04666305]
[1740637805913,193.72,140.49,140.41,0.04666305]
[1740637806815,0.05412202,140.46,140.34,8.48179391]
[1740637807014,193.2795378,140.48,140.33,2.0336]
[1740637807315,1.2795378,140.47,140.33,2.0336]
[1740637807515,205.2195,140.48,140.34,8.48179391]
[1740637807711,205.2195,140.48,140.35,8.48179391]
[1740637807912,0.04741361,140.43,140.4,0.04830588]
[1740637808920,0.04741361,140.43,140.4,7.17760588]
[1740637809116,0.04741361,140.43,140.4,0.04830588]
[1740637811521,0.04741361,140.43,140.41,7.1289]
[1740637812520,7.1265,140.46,140.41,7.1289]
[1740637812921,7.127,140.45,140.4,7.17750588]
[1740637813924,0.05218794,140.44,140.4,7.17750588]
[1740637814323,0.05218794,140.44,140.4,0.04830588]
[1740637814524,0.05218794,140.44,140.4,8.52746212]
[1740637815024,0.05218794,140.44,140.41,7.1288]
[1740637816023,0.05218794,140.44,140.42,7.1283]
[1740637816225,0.05218794,140.44,140.41,8.48490718]
[1740637816422,203.32,140.54,140.42,10.45330718]
[1740637816621,11.32,140.54,140.43,8.48490718]
[1740637816824,11.32,140.54,140.42,1.9684]
[1740637817127,7.1257,140.48,140.44,7.1273]
[1740637817515,0.0514831,140.47,140.45,0.04907632]
[1740637817825,0.0514831,140.47,140.45,7.17577632]
[1740637820123,0.0514831,140.47,140.45,0.04907632]
[1740637822530,0.0514831,140.47,140.4,15.6426344]
[1740637822732,0.0514831,140.47,140.4,7.1293]
[1740637823127,7.1274,140.45,140.41,8.52404328]
[1740637823334,0.0514831,140.47,140.39,1.9316]
[1740637823633,1.27934019,140.52,140.42,0.04588436]
[1740637823833,0.04920177,140.44,140.43,8.52420995]
[1740637824034,1.27934019,140.52,140.46,0.05008412]
[1740637824235,0.4102,140.53,140.43,7.1276]
[1740637824436,7.1249,140.49,140.48,0.05444318]
[1740637825334,0.05332412,140.5,140.41,8.54498881]
[1740637825540,11.34,140.51,140.42,8.54498881]
[1740637825735,11.34,140.51,140.43,8.54498881]
[1740637825934,11.34,140.51,140.4,9.1024]
[1740637826136,7.1272,140.45,140.41,8.54927289]
[1740637826337,0.04615112,140.44,140.42,8.60369597]
[1740637826539,1.27943728,140.5,140.43,8.54927289]
[1740637826739,7.17782093,140.44,140.42,0.04694101]
[1740637826938,7.1277,140.44,140.4,1.9731]
[1740637827139,7.17577527,140.44,140.42,0.04805851]
[1740637827840,7.1279,140.43,140.42,0.04805851]
[1740637828439,7.1303,140.39,140.35,16.85110903]
[1740637828636,7.1303,140.39,140.36,8.5744254]
[1740637828837,11.32,140.44,140.35,9.71930903]
[1740637829039,7.1305,140.38,140.35,9.71930903]
[1740637829240,7.1305,140.38,140.36,8.58425047]
[1740637829536,7.1305,140.38,140.37,8.58425047]
[1740637829738,7.1838947,140.38,140.37,8.58425047]
[1740637829937,7.131,140.37,140.36,0.04906541]
[1740637830138,7.131,140.37,140.36,8.63931311]
[1740637830345,7.131,140.37,140.36,0.04906541]
[1740637830541,7.131,140.37,140.29,9.71930903]
[1740637830741,11.34,140.37,140.3,8.59079895]
[1740637831045,192.0,140.36,140.29,9.71930903]
[1740637831237,1.28081888,140.35,140.29,9.71930903]
[1740637831438,7.1345,140.3,140.29,9.71930903]
[1740637832241,0.04495696,140.31,140.29,9.71930903]
[1740637833146,0.04495696,140.31,140.28,105.11798136]
[1740637833147,0.04495696,140.31,140.28,0.04522286]
[1740637838147,0.04495696,140.31,140.3,7.1345]
[1740637838540,193.78,140.33,140.29,3.8436]
[1740637838737,18.4711,140.37,140.29,14.2242948]
[1740637839043,7.1306,140.38,140.29,5.6933]
[1740637839243,7.1306,140.38,140.3,8.52905414]
[1740637839442,11.34,140.39,140.29,5.6933]
[1740637839751,0.04788038,140.35,140.33,0.04622506]
[1740637840139,202.9533,140.41,140.33,0.04622506]
[1740637840338,193.88,140.41,140.34,8.52241542]
[1740637840540,193.88,140.41,140.34,8.52148555]
[1740637840742,201.009,140.41,140.3,8.52148555]
[1740637840950,193.88,140.41,140.31,8.52148555]
[1740637841144,11.34,140.42,140.41,9806.12]
[1740637841445,18.4688,140.42,140.41,9806.12]
[1740637841649,11.34,140.42,140.41,9806.12]
[1740637842342,18.4684,140.42,140.41,9806.12]
[1740637842548,11.34,140.42,140.41,9806.12]
[1740637845649,18.4684,140.42,140.41,9806.12]
[1740637849148,18.4684,140.42,140.41,9791.9709]
[1740637849351,18.4684,140.42,140.41,9789.1098]
[1740637854857,11.34,140.42,140.41,9789.1098]
[1740637858652,18.4684,140.42,140.41,9789.1098]
[1740637860957,7.17340327,140.43,140.41,9789.1098]
[1740637861153,0.04530327,140.43,140.41,9789.1098]
[1740637861857,193.9,140.47,140.41,9789.1098]
[1740637862155,193.9,140.47,140.41,9796.2386]
[1740637862755,201.026,140.47,140.42,7.1284]
[1740637863056,133.99799105,140.53,140.41,9789.1098]
[1740637863258,143.45029105,140.53,140.43,0.04785792]
[1740637863455,143.45029105,140.53,140.44,8.52847527]
[1740637863662,11.34,140.53,140.45,10.38397114]
[1740637863859,7.1225,140.54,140.48,7.1251]
[1740637864058,193.84,140.55,140.48,7.1251]
[1740637864254,0.04855867,140.52,140.5,0.0479028]
[1740637864464,90.06152081,140.59,140.5,0.0479028]
[1740637864866,1.27863345,140.58,140.46,1.8592]
[1740637865059,90.06152081,140.59,140.47,8.51757539]
[1740637865259,90.06152081,140.59,140.46,1.8592]
[1740637865455,1.27865319,140.58,140.47,8.51282626]
[1740637865663,0.04867653,140.54,140.51,0.04547057]
[1740637867858,7.1233,140.52,140.51,0.04547057]
[1740637869667,7.1229,140.53,140.51,0.04547057]
[1740637869862,0.04867653,140.54,140.51,0.04547057]
[1740637870563,7.122,140.55,140.51,0.04547057]
[1740637870764,7.122,140.55,140.51,1.98887057]
[1740637871361,192.0,140.61,140.51,1.98887057]
[1740637871362,7.1214,140.56,140.51,9.11247057]
[1740637871567,7.1214,140.56,140.51,9.067]
[1740637871768,11.34,140.58,140.52,0.04774738]
[1740637872267,1.27870545,140.57,140.52,0.04774738]
[1740637872668,11.34,140.58,140.52,0.04774738]
[1740637872669,1.27886573,140.56,140.52,0.04774738]
[1740637872867,7.1228,140.53,140.52,4.738e-05]
[1740637874362,8.40191452,140.53,140.52,4.738e-05]
[1740637874565,29.74191452,140.53,140.52,4.738e-05]
[1740637874765,51.13191452,140.53,140.52,4.738e-05]
[1740637875267,29.74191452,140.53,140.52,4.738e-05]
[1740637875665,8.40191452,140.53,140.52,4.738e-05]
[1740637876170,7.1228,140.53,140.52,4.738e-05]
[1740637879272,11.32,140.57,140.52,4.738e-05]
[1740637879673,7.1207,140.58,140.52,4.738e-05]
[1740637879866,11.34,140.6,140.48,8.4967846]
[1740637880067,11.34,140.6,140.49,8.4967846]
[1740637880366,11.34,140.6,140.5,1.8965]
[1740637880567,11.34,140.6,140.53,0.0520278]
[1740637880769,7.1223,140.54,140.53,0.0520278]
[1740637882475,7.1223,140.54,140.53,2.78e-05]
[1740637887991,29.79127851,140.54,140.53,2.78e-05]
[1740637888192,29.74127851,140.54,140.53,2.78e-05]
[1740637888788,37.17691114,140.54,140.53,2.78e-05]
[1740637890290,8.40127851,140.54,140.53,2.78e-05]
[1740637890491,29.74127851,140.54,140.53,2.78e-05]
[1740637890691,8.40127851,140.54,140.53,2.78e-05]
[1740637891291,7.1223,140.54,140.53,2.78e-05]
[1740637891990,387.6453,140.64,140.53,2.78e-05]
[1740637892191,1.27836,140.63,140.53,2.78e-05]
[1740637892393,12.61836,140.63,140.51,1.9107]
[1740637892593,11.34,140.62,140.52,8.51114243]
[1740637892794,7.1197,140.6,140.54,7.1223]
[1740637892993,205.04,140.64,140.51,1.9107]
[1740637893194,0.02304609,140.58,140.56,0.04589528]
[1740637893391,193.7,140.64,140.56,0.04589528]
[1740637893985,193.7,140.64,140.57,15.62554839]
[1740637894192,193.7,140.64,140.51,1.9107]
[1740637894492,193.7,140.64,140.56,0.04931065]
[1740637894692,7.1184,140.62,140.56,7.17021065]
[1740637895490,7.1188,140.61,140.56,0.04931065]
[1740637897398,7.1194,140.6,140.56,2.05121065]
[1740637898296,7.1194,140.6,140.56,4.06101065]
[1740637899799,7.1199,140.59,140.56,4.06101065]
[1740637899994,193.7,140.64,140.56,4.06101065]
[1740637900394,54.08455676,140.66,140.56,4.06101065]
[1740637900597,206.8148,140.72,140.57,8.49920449]
[1740637900801,1.27765784,140.71,140.6,0.05308321]
[1740637901096,11.36,140.7,140.59,10.53810449]
[1740637901297,11.36,140.7,140.64,0.04836243]
[1740637901298,1.27765784,140.69,140.64,0.04836243]
[1740637901499,7.1163,140.66,140.64,0.04836243]
[1740637904093,11.36,140.7,140.64,0.04836243]
[1740637904900,7.1155,140.68,140.64,0.04836243]
[1740637905297,11.36,140.7,140.64,0.04836243]
[1740637905697,7.1149,140.69,140.64,0.04836243]
[1740637906096,7.1149,140.69,140.64,2.04826243]
[1740637906296,7.1144,140.7,140.64,2.04826243]
[1740637907501,18.4539,140.71,140.64,2.04826243]
[1740637907901,18.4539,140.71,140.66,7.1162]
[1740637908402,18.4539,140.71,140.67,0.04968583]
[1740637908896,4.0228,140.78,140.67,0.04968583]
[1740637909101,64.64472528,140.79,140.67,0.04968583]
[1740637909300,64.64472528,140.79,140.64,1.9999]
[1740637909301,1.27707456,140.78,140.65,8.47018006]
[1740637909497,53.30472528,140.79,140.72,0.04844223]
[1740637909800,193.52,140.8,140.72,0.04844223]
[1740637910001,15.3628,140.82,140.72,0.04844223]
[1740637910203,7.11,140.79,140.72,7.1129]
[1740637910403,7.11,140.79,140.76,0.04632133]
[1740637911793,11.34,140.82,140.76,0.04632133]
[1740637912102,1.27658049,140.81,140.76,0.04632133]
[1740637913101,7.1107,140.77,140.76,0.04632133]
[1740637914797,11.34,140.82,140.76,0.04632133]
[1740637915002,0.733,140.86,140.76,0.04632133]
[1740637915003,1.27665369,140.81,140.76,0.04632133]
[1740637915198,11.34,140.83,140.73,1.889]
[1740637915399,1.27656897,140.82,140.77,0.05086672]
[1740637916206,11.34,140.83,140.77,0.05086672]
[1740637916406,1.27654982,140.82,140.77,0.05086672]
[1740637917601,7.1102,140.78,140.77,0.05086672]
[1740637918104,11.34,140.83,140.77,0.05086672]
[1740637918304,7.11,140.79,140.77,0.05086672]
[1740637918706,11.34,140.83,140.77,0.05086672]
[1740637919002,7.1102,140.78,140.77,0.05086672]
[1740637921105,7.1102,140.78,140.77,6.672e-05]
[1740637921499,8.38710573,140.78,140.77,6.672e-05]
[1740637922105,7.1102,140.78,140.77,6.672e-05]
[1740637922907,11.0497,140.78,140.77,6.672e-05]
[1740637923708,12.32664654,140.78,140.77,6.672e-05]
[1740637926210,33.64664654,140.78,140.77,6.672e-05]
[1740637926409,12.32664654,140.78,140.77,6.672e-05]
[1740637927114,224.3697,140.78,140.77,6.672e-05]
[1740637927305,226.44934686,140.78,140.77,6.672e-05]
[1740637927510,247.76934686,140.78,140.77,6.672e-05]
[1740637928403,55.76934686,140.78,140.77,6.672e-05]
[1740637929113,33.1024,140.78,140.77,6.672e-05]
[1740637929412,34.44949935,140.78,140.77,6.672e-05]
[1740637929614,55.76949935,140.78,140.77,6.672e-05]
[1740637929813,24.37949935,140.78,140.77,6.672e-05]
[1740637930409,23.1024,140.78,140.77,6.672e-05]
[1740637930610,24.37943167,140.78,140.77,6.672e-05]
[1740637931109,19.70723167,140.78,140.77,6.672e-05]
[1740637933810,18.4302,140.78,140.77,6.672e-05]
[1740637934011,19.70723637,140.78,140.77,6.672e-05]
[1740637934616,18.4302,140.78,140.77,6.672e-05]
[1740637935014,19.7070507,140.78,140.77,6.672e-05]
[1740637935217,8.3870507,140.78,140.77,6.672e-05]
[1740637935517,7.1102,140.78,140.77,6.672e-05]
[1740637936016,0.05061928,140.79,140.77,6.672e-05]
[1740637938115,7.16031928,140.79,140.77,6.672e-05]
[1740637938321,0.05061928,140.79,140.77,6.672e-05]
[1740637938922,7.16071928,140.79,140.77,6.672e-05]
[1740637939123,0.05061928,140.79,140.77,6.672e-05]
[1740637939621,7.1102,140.78,140.77,6.672e-05]
[1740637940320,0.05061928,140.79,140.77,6.672e-05]
[1740637940525,7.16041928,140.79,140.77,6.672e-05]
[1740637940823,0.05061928,140.79,140.77,6.672e-05]
[1740637941613,7.16061928,140.79,140.77,6.672e-05]
[1740637941819,0.05061928,140.79,140.77,6.672e-05]
[1740637943427,7.16061928,140.79,140.77,6.672e-05]
[1740637943632,0.05061928,140.79,140.77,6.672e-05]
[1740637944929,7.16031928,140.79,140.77,6.672e-05]
[1740637946029,7.1102,140.78,140.77,6.672e-05]
[1740637948933,8.38710833,140.78,140.77,6.672e-05]
[1740637949528,8.38710654,140.78,140.77,6.672e-05]
[1740637951828,29.70710654,140.78,140.77,6.672e-05]
[1740637952028,49.35784164,140.78,140.77,6.672e-05]
[1740637953233,28.03784164,140.78,140.77,6.672e-05]
[1740637953430,20.61529316,140.78,140.77,6.672e-05]
[1740637953633,8.38710654,140.78,140.77,6.672e-05]
[1740637953830,7.1102,140.78,140.77,6.672e-05]
[1740637954036,8.38728808,140.78,140.77,6.672e-05]
[1740637955132,63.3254747,140.78,140.77,6.672e-05]
[1740637955531,196.48528709,140.87,140.77,21.32006672]
[1740637955731,78.72152081,140.82,140.78,8.61943121]
[1740637955935,65.66412081,140.82,140.8,7.1088]
[1740637956326,65.66412081,140.82,140.81,8.61373924]
[1740637956533,65.66412081,140.82,140.81,29.90623538]
[1740637956733,35.08834805,140.82,140.81,37.92941161]
[1740637957334,35.08834805,140.82,140.81,16.62941161]
[1740637957737,35.08834805,140.82,140.81,18.80055154]
[1740637957932,35.08834805,140.82,140.81,11.69185154]
[1740637959240,35.08834805,140.82,140.81,18.80055154]
[1740637959538,35.08834805,140.82,140.81,3.08561616]
[1740637960239,18.5452,140.88,140.81,3.08561616]
[1740637960429,11.44,140.88,140.82,3.08561616]
[1740637960634,11.44,140.88,140.83,3.13553416]
[1740637960833,11.44,140.88,140.84,3.08561616]
[1740637961034,11.44,140.88,140.85,3.08561616]
[1740637961238,11.44,140.88,140.86,3.08561616]
[1740637961539,11.44,140.88,140.87,3.08561616]
[1740637963543,10.1222,140.9,140.87,3.08561616]
[1740637963738,10.1222,140.9,140.86,0.04824736]
[1740637963739,11.42,140.89,140.88,3.08561616]
[1740637963937,18.5246,140.89,140.88,3.08561616]
[1740637964537,11.42,140.89,140.88,3.08561616]
[1740637964733,3.018,140.9,140.88,3.08561616]
[1740637964937,3.018,140.9,140.89,3.08561616]
[1740637965136,10.1221,140.9,140.89,3.08561616]
[1740637965333,3.018,140.9,140.89,3.08561616]
[1740637966438,1.0,140.9,140.89,3.08561616]
[1740637966840,8.1041,140.9,140.89,3.08561616]
[1740637967636,12.4,140.9,140.89,3.08561616]
[1740637968234,12.4,140.9,140.86,0.04824736]
[1740637968841,7.1055,140.88,140.86,0.04824736]
[1740637969142,12.4,140.9,140.86,0.04824736]
[1740637969344,7.1057,140.87,140.86,0.04824736]
[1740637974847,33.79,140.9,140.78,1.9017]
[1740637975047,1.26605771,140.89,140.72,8.54199145]
[1740637975252,21.39,140.88,140.73,8.54199145]